[Event "Titled Tuesday Blitz June 29 2021"]
[White "AlexPapasimakopoulos"]
[Black "DenLaz"]
[WhiteElo "2674"]
[BlackElo "2852"]
[Result "1-0"]
[Round "06"]
[TimeControl "180+1"]
[Date "2021.06.29"]
[WhiteClock "0:00:03"]
[BlackClock "0:00:02"]

1. d4 {[%clk 0:03:00]}  Nf6 {[%clk 0:02:58]} 2. c4 {[%clk 0:03:01]}  e6 {[%clk 0:02:58]} 3. Nc3 {[%clk 0:03:01]}  Bb4 {[%clk 0:02:59]} 4. Qc2 {[%clk 0:03:02]}  O-O {[%clk 0:02:57]} 5. a3 {[%clk 0:03:02]}  Bxc3+ {[%clk 0:02:56]} 6. Qxc3 {[%clk 0:03:03]}  d5 {[%clk 0:02:50]} 7. Nf3 {[%clk 0:03:02]}  dxc4 {[%clk 0:02:48]} 8. Qxc4 {[%clk 0:03:02]}  b6 {[%clk 0:02:48]} 9. Bg5 {[%clk 0:03:03]}  Bb7 {[%clk 0:02:46]} 10. e3 {[%clk 0:03:00]}  Nbd7 {[%clk 0:02:43]} 11. Be2 {[%clk 0:02:54]}  h6 {[%clk 0:02:42]} 12. Bh4 {[%clk 0:02:53]}  c5 {[%clk 0:02:40]} 13. O-O {[%clk 0:02:53]}  Rc8 {[%clk 0:02:35]} 14. Rfd1 {[%clk 0:02:53]}  Qe7 {[%clk 0:02:33]} 15. Qa4 {[%clk 0:02:49]}  a6 {[%clk 0:02:31]} 16. dxc5 {[%clk 0:02:28]}  Nxc5 {[%clk 0:02:29]} 17. Qb4 {[%clk 0:02:19]}  g5 {[%clk 0:02:24]} 18. Bg3 {[%clk 0:02:19]}  Nd5 {[%clk 0:02:24]} 19. Qe1 {[%clk 0:02:14]}  Rfd8 {[%clk 0:02:19]} 20. Rac1 {[%clk 0:02:13]}  Ne4 {[%clk 0:01:58]} 21. Nd4 {[%clk 0:02:07]}  Nxg3 {[%clk 0:01:55]} 22. hxg3 {[%clk 0:02:08]}  Nf6 {[%clk 0:01:48]} 23. Rxc8 {[%clk 0:02:00]}  Rxc8 {[%clk 0:01:48]} 24. Rc1 {[%clk 0:02:01]}  Qd7 {[%clk 0:01:42]} 25. Qd1 {[%clk 0:01:51]}  Kg7 {[%clk 0:01:29]} 26. g4 {[%clk 0:01:44]}  Rc7 {[%clk 0:01:07]} 27. Bf3 {[%clk 0:01:36]}  Bxf3 {[%clk 0:01:05]} 28. gxf3 {[%clk 0:01:37]}  Qc8 {[%clk 0:01:03]} 29. Rxc7 {[%clk 0:01:31]}  Qxc7 {[%clk 0:01:04]} 30. Kg2 {[%clk 0:01:22]}  Nd5 {[%clk 0:01:03]} 31. Qa4 {[%clk 0:01:15]}  a5 {[%clk 0:01:00]} 32. Qe8 {[%clk 0:00:59]}  Nf6 {[%clk 0:00:55]} 33. Qxe6 {[%clk 0:00:56]}  fxe6 {[%clk 0:00:39]} 34. Nxe6+ {[%clk 0:00:55]}  Kf7 {[%clk 0:00:40]} 35. Nxc7 {[%clk 0:00:56]}  Ke7 {[%clk 0:00:40]} 36. Kg3 {[%clk 0:00:50]}  Kd6 {[%clk 0:00:40]} 37. Nb5+ {[%clk 0:00:50]}  Kc5 {[%clk 0:00:40]} 38. Nd4 {[%clk 0:00:50]}  Kc4 {[%clk 0:00:39]} 39. f4 {[%clk 0:00:50]}  Kd3 {[%clk 0:00:37]} 40. Nf5 {[%clk 0:00:35]}  Ng8 {[%clk 0:00:24]} 41. Nd4 {[%clk 0:00:26]}  Nf6 {[%clk 0:00:23]} 42. Kf3 {[%clk 0:00:20]}  a4 {[%clk 0:00:16]} 43. Nf5 {[%clk 0:00:19]}  Ng8 {[%clk 0:00:13]} 44. Nd4 {[%clk 0:00:19]}  Nf6 {[%clk 0:00:13]} 45. Nb5 {[%clk 0:00:15]}  Kc2 {[%clk 0:00:12]} 46. Nc3 {[%clk 0:00:15]}  Kb3 {[%clk 0:00:12]} 47. fxg5 {[%clk 0:00:14]}  hxg5 {[%clk 0:00:12]} 48. Kg3 {[%clk 0:00:14]}  b5 {[%clk 0:00:09]} 49. f4 {[%clk 0:00:12]}  gxf4+ {[%clk 0:00:06]} 50. exf4 {[%clk 0:00:13]}  Ne4+ {[%clk 0:00:06]} 51. Nxe4 {[%clk 0:00:13]}  Kxb2 {[%clk 0:00:06]} 52. f5 {[%clk 0:00:12]}  b4 {[%clk 0:00:06]} 53. f6 {[%clk 0:00:09]}  bxa3 {[%clk 0:00:06]} 54. f7 {[%clk 0:00:10]}  a2 {[%clk 0:00:07]} 55. f8=Q {[%clk 0:00:11]}  a1=Q {[%clk 0:00:08]} 56. Qh8+ {[%clk 0:00:11]}  Ka2 {[%clk 0:00:08]} 57. Qxa1+ {[%clk 0:00:10]}  Kxa1 {[%clk 0:00:09]} 58. g5 {[%clk 0:00:11]}  a3 {[%clk 0:00:10]} 59. g6 {[%clk 0:00:12]}  Kb2 {[%clk 0:00:10]} 60. g7 {[%clk 0:00:09]}  a2 {[%clk 0:00:10]} 61. g8=Q {[%clk 0:00:10]}  a1=Q {[%clk 0:00:11]} 62. Qb8+ {[%clk 0:00:11]}  Kc2 {[%clk 0:00:10]} 63. Qc7+ {[%clk 0:00:09]}  Kd3 {[%clk 0:00:08]} 64. Nf2+ {[%clk 0:00:09]}  Ke3 {[%clk 0:00:05]} 65. Qf4+ {[%clk 0:00:09]}  Ke2 {[%clk 0:00:05]} 66. Qe4+ {[%clk 0:00:08]}  Kd2 {[%clk 0:00:05]} 67. Qd3+ {[%clk 0:00:09]}  Kc1 {[%clk 0:00:06]} 68. Qd1+ {[%clk 0:00:08]}  Kb2 {[%clk 0:00:06]} 69. Nd3+ {[%clk 0:00:08]}  Ka2 {[%clk 0:00:07]} 70. Qc2+ {[%clk 0:00:08]}  Ka3 {[%clk 0:00:07]} 71. Qc5+ {[%clk 0:00:08]}  Kb3 {[%clk 0:00:07]} 72. Qd5+ {[%clk 0:00:07]}  Kc2 {[%clk 0:00:06]} 73. Nb4+ {[%clk 0:00:06]}  Kc1 {[%clk 0:00:03]} 74. Qc4+ {[%clk 0:00:03]}  Kb2 {[%clk 0:00:03]} 75. Nd3+ {[%clk 0:00:02]}  Ka3 {[%clk 0:00:01]} 76. Qa6+ {[%clk 0:00:02]}  Kb3 {[%clk 0:00:02]} 77. Qxa1 {[%clk 0:00:03]} 1-0


[Site "https://www.chess.com"]

[Event "Titled Tuesday Blitz June 29 2021"]
[White "Alexander_Donchenko"]
[Black "Alexander_Zubov"]
[WhiteElo "2851"]
[BlackElo "3012"]
[Result "1/2-1/2"]
[Round "06"]
[TimeControl "180+1"]
[Date "2021.06.29"]
[WhiteClock "0:00:10"]
[BlackClock "0:00:08"]

1. Nf3 {[%clk 0:03:00]}  d5 {[%clk 0:02:59]} 2. g3 {[%clk 0:03:01]}  g6 {[%clk 0:02:59]} 3. Bg2 {[%clk 0:03:01]}  Bg7 {[%clk 0:02:59]} 4. d4 {[%clk 0:03:01]}  c6 {[%clk 0:02:59]} 5. O-O {[%clk 0:03:01]}  Nf6 {[%clk 0:03:00]} 6. c4 {[%clk 0:03:01]}  dxc4 {[%clk 0:03:00]} 7. a4 {[%clk 0:02:56]}  c5 {[%clk 0:02:49]} 8. Na3 {[%clk 0:02:52]}  cxd4 {[%clk 0:02:39]} 9. Nxd4 {[%clk 0:02:51]}  O-O {[%clk 0:02:25]} 10. Nxc4 {[%clk 0:02:49]}  Na6 {[%clk 0:02:22]} 11. Bf4 {[%clk 0:02:44]}  Nd5 {[%clk 0:02:14]} 12. Be5 {[%clk 0:02:40]}  Bxe5 {[%clk 0:01:57]} 13. Nxe5 {[%clk 0:02:41]}  Nab4 {[%clk 0:01:39]} 14. Qb3 {[%clk 0:02:36]}  a5 {[%clk 0:01:38]} 15. Rfd1 {[%clk 0:02:31]}  Qd6 {[%clk 0:01:31]} 16. Nc4 {[%clk 0:02:11]}  Qc5 {[%clk 0:01:30]} 17. Rac1 {[%clk 0:02:05]}  Nb6 {[%clk 0:01:24]} 18. Ne3 {[%clk 0:01:39]}  Qe5 {[%clk 0:01:15]} 19. Nb5 {[%clk 0:01:22]}  Bd7 {[%clk 0:00:54]} 20. Qc3 {[%clk 0:01:08]}  Qxc3 {[%clk 0:00:39]} 21. bxc3 {[%clk 0:01:09]}  Nc6 {[%clk 0:00:35]} 22. c4 {[%clk 0:00:41]}  Rad8 {[%clk 0:00:27]} 23. Nc3 {[%clk 0:00:40]}  Nb4 {[%clk 0:00:22]} 24. Ned5 {[%clk 0:00:10]}  Nxa4 {[%clk 0:00:17]} 25. Nxe7+ {[%clk 0:00:08]}  Kg7 {[%clk 0:00:18]} 26. Bxb7 {[%clk 0:00:06]}  Nc5 {[%clk 0:00:14]} 27. Bf3 {[%clk 0:00:04]}  a4 {[%clk 0:00:09]} 28. Ned5 {[%clk 0:00:04]}  Rb8 {[%clk 0:00:07]} 29. Nxb4 {[%clk 0:00:01]}  Rxb4 {[%clk 0:00:07]} 30. Ne4 {[%clk 0:00:02]}  Nxe4 {[%clk 0:00:07]} 31. Bxe4 {[%clk 0:00:02]}  Be6 {[%clk 0:00:05]} 32. Bd5 {[%clk 0:00:03]}  a3 {[%clk 0:00:02]} 33. Bxe6 {[%clk 0:00:03]}  fxe6 {[%clk 0:00:03]} 34. Ra1 {[%clk 0:00:03]}  Ra8 {[%clk 0:00:03]} 35. Rd3 {[%clk 0:00:03]}  a2 {[%clk 0:00:04]} 36. Rdd1 {[%clk 0:00:03]}  Rb2 {[%clk 0:00:04]} 37. Rdc1 {[%clk 0:00:03]}  Rxe2 {[%clk 0:00:03]} 38. c5 {[%clk 0:00:03]}  Rf8 {[%clk 0:00:03]} 39. c6 {[%clk 0:00:03]}  Kf6 {[%clk 0:00:01]} 40. c7 {[%clk 0:00:03]}  Rc8 {[%clk 0:00:02]} 41. Rc3 {[%clk 0:00:03]}  Rb2 {[%clk 0:00:02]} 42. Kg2 {[%clk 0:00:03]}  Ke5 {[%clk 0:00:03]} 43. Ra3 {[%clk 0:00:03]}  Rxc7 {[%clk 0:00:03]} 44. R3xa2 {[%clk 0:00:04]}  Rxa2 {[%clk 0:00:04]} 45. Rxa2 {[%clk 0:00:05]}  Kf6 {[%clk 0:00:03]} 46. Re2 {[%clk 0:00:05]}  g5 {[%clk 0:00:04]} 47. Re3 {[%clk 0:00:06]}  h5 {[%clk 0:00:04]} 48. h3 {[%clk 0:00:06]}  g4 {[%clk 0:00:04]} 49. hxg4 {[%clk 0:00:06]}  hxg4 {[%clk 0:00:05]} 50. Re4 {[%clk 0:00:06]}  Rg7 {[%clk 0:00:06]} 51. Rf4+ {[%clk 0:00:07]}  Ke5 {[%clk 0:00:06]} 52. Rc4 {[%clk 0:00:07]}  Kf5 {[%clk 0:00:07]} 53. Rf4+ {[%clk 0:00:07]}  Kg5 {[%clk 0:00:07]} 54. Ra4 {[%clk 0:00:08]}  e5 {[%clk 0:00:07]} 55. Ra5 {[%clk 0:00:08]}  Kf5 {[%clk 0:00:07]} 56. Ra4 {[%clk 0:00:09]}  Rg6 {[%clk 0:00:07]} 57. Ra5 {[%clk 0:00:09]}  Rg7 {[%clk 0:00:08]} 58. Ra4 {[%clk 0:00:09]}  Rg6 {[%clk 0:00:08]} 59. Ra5 {[%clk 0:00:10]}  Rg7 {[%clk 0:00:08]} 1/2-1/2


[Site "https://www.chess.com"]

[Event "Titled Tuesday Blitz June 29 2021"]
[White "Buffy7"]
[Black "KarateBaby"]
[WhiteElo "2726"]
[BlackElo "2390"]
[Result "0-1"]
[Round "06"]
[TimeControl "180+1"]
[Date "2021.06.29"]
[WhiteClock "0:00:23"]
[BlackClock "0:00:24"]

1. d4 {[%clk 0:03:00]}  Nf6 {[%clk 0:02:56]} 2. c4 {[%clk 0:03:00]}  g6 {[%clk 0:02:56]} 3. h4 {[%clk 0:03:01]}  Bg7 {[%clk 0:02:56]} 4. Nc3 {[%clk 0:03:00]}  c5 {[%clk 0:02:55]} 5. d5 {[%clk 0:03:00]}  O-O {[%clk 0:02:55]} 6. e4 {[%clk 0:03:00]}  d6 {[%clk 0:02:55]} 7. Be2 {[%clk 0:02:52]}  e6 {[%clk 0:02:55]} 8. h5 {[%clk 0:02:53]}  exd5 {[%clk 0:02:56]} 9. exd5 {[%clk 0:02:53]}  Re8 {[%clk 0:02:53]} 10. h6 {[%clk 0:02:51]}  Bh8 {[%clk 0:02:41]} 11. Kf1 {[%clk 0:02:51]}  Nbd7 {[%clk 0:02:37]} 12. Bg5 {[%clk 0:02:50]}  a6 {[%clk 0:02:32]} 13. a4 {[%clk 0:02:49]}  Ne5 {[%clk 0:02:24]} 14. Rh4 {[%clk 0:02:31]}  Qb6 {[%clk 0:02:03]} 15. Ra2 {[%clk 0:02:29]}  Bf5 {[%clk 0:01:42]} 16. Rf4 {[%clk 0:02:27]}  Rf8 {[%clk 0:01:17]} 17. g4 {[%clk 0:02:23]}  Bxg4 {[%clk 0:00:54]} 18. Bxg4 {[%clk 0:02:24]}  Nfxg4 {[%clk 0:00:51]} 19. Rxg4 {[%clk 0:02:10]}  Nxg4 {[%clk 0:00:52]} 20. Qxg4 {[%clk 0:02:09]}  Bxc3 {[%clk 0:00:50]} 21. bxc3 {[%clk 0:02:03]}  Qb1+ {[%clk 0:00:50]} 22. Kg2 {[%clk 0:02:03]}  Qxa2 {[%clk 0:00:46]} 23. Qf4 {[%clk 0:02:02]}  f6 {[%clk 0:00:29]} 24. Bxf6 {[%clk 0:01:47]}  Rf7 {[%clk 0:00:29]} 25. Qxd6 {[%clk 0:01:38]}  Raf8 {[%clk 0:00:29]} 26. Qe6 {[%clk 0:01:38]}  Qxc4 {[%clk 0:00:25]} 27. Nf3 {[%clk 0:01:37]}  Qxa4 {[%clk 0:00:20]} 28. Ng5 {[%clk 0:00:33]}  Qd7 {[%clk 0:00:18]} 29. Nxf7 {[%clk 0:00:26]}  Qxf7 {[%clk 0:00:19]} 30. Bg5 {[%clk 0:00:16]}  Qxe6 {[%clk 0:00:18]} 31. dxe6 {[%clk 0:00:17]}  Re8 {[%clk 0:00:19]} 32. e7 {[%clk 0:00:17]}  Kf7 {[%clk 0:00:19]} 33. Kf3 {[%clk 0:00:17]}  Rxe7 {[%clk 0:00:19]} 34. Bxe7 {[%clk 0:00:17]}  Kxe7 {[%clk 0:00:20]} 35. Ke4 {[%clk 0:00:18]}  Kd6 {[%clk 0:00:20]} 36. f4 {[%clk 0:00:18]}  b5 {[%clk 0:00:21]} 37. f5 {[%clk 0:00:19]}  gxf5+ {[%clk 0:00:22]} 38. Kxf5 {[%clk 0:00:19]}  b4 {[%clk 0:00:22]} 39. Kf6 {[%clk 0:00:20]}  bxc3 {[%clk 0:00:21]} 40. Kg7 {[%clk 0:00:21]}  c2 {[%clk 0:00:21]} 41. Kxh7 {[%clk 0:00:22]}  c1=Q {[%clk 0:00:22]} 42. Kg7 {[%clk 0:00:22]}  Qxh6+ {[%clk 0:00:23]} 43. Kxh6 {[%clk 0:00:23]}  c4 {[%clk 0:00:24]} 0-1


[Site "https://www.chess.com"]

[Event "Titled Tuesday Blitz June 29 2021"]
[White "FairChess_on_YouTube"]
[Black "hanzo_hasashi1"]
[WhiteElo "2991"]
[BlackElo "2827"]
[Result "0-1"]
[Round "06"]
[TimeControl "180+1"]
[Date "2021.06.29"]
[WhiteClock "0:00:06"]
[BlackClock "0:00:05"]

1. Nf3 {[%clk 0:03:00]}  Nf6 {[%clk 0:02:57]} 2. c4 {[%clk 0:03:01]}  g6 {[%clk 0:02:56]} 3. b4 {[%clk 0:02:59]}  Bg7 {[%clk 0:02:56]} 4. Bb2 {[%clk 0:03:00]}  O-O {[%clk 0:02:54]} 5. g3 {[%clk 0:03:00]}  d6 {[%clk 0:02:44]} 6. Bg2 {[%clk 0:03:00]}  e5 {[%clk 0:02:44]} 7. d3 {[%clk 0:03:00]}  a5 {[%clk 0:02:29]} 8. a3 {[%clk 0:02:55]}  Nc6 {[%clk 0:02:07]} 9. b5 {[%clk 0:02:54]}  Ne7 {[%clk 0:02:07]} 10. O-O {[%clk 0:02:54]}  h5 {[%clk 0:02:00]} 11. Nc3 {[%clk 0:02:52]}  Nd7 {[%clk 0:01:30]} 12. Ne4 {[%clk 0:02:40]}  Nf5 {[%clk 0:01:17]} 13. h4 {[%clk 0:02:35]}  Rb8 {[%clk 0:01:14]} 14. d4 {[%clk 0:02:24]}  Qe7 {[%clk 0:01:09]} 15. a4 {[%clk 0:02:04]}  Rd8 {[%clk 0:00:54]} 16. Ra3 {[%clk 0:01:52]}  exd4 {[%clk 0:00:38]} 17. Nxd4 {[%clk 0:01:51]}  Nxd4 {[%clk 0:00:38]} 18. Bxd4 {[%clk 0:01:50]}  Bxd4 {[%clk 0:00:38]} 19. Qxd4 {[%clk 0:01:49]}  d5 {[%clk 0:00:39]} 20. Ng5 {[%clk 0:01:18]}  Qxa3 {[%clk 0:00:13]} 21. Nxf7 {[%clk 0:01:18]}  Rf8 {[%clk 0:00:07]} 22. Ng5 {[%clk 0:01:09]}  Nf6 {[%clk 0:00:07]} 23. cxd5 {[%clk 0:01:07]}  Qd6 {[%clk 0:00:05]} 24. e4 {[%clk 0:01:06]}  Ng4 {[%clk 0:00:05]} 25. f4 {[%clk 0:01:05]}  Qb6 {[%clk 0:00:04]} 26. Qxb6 {[%clk 0:01:05]}  cxb6 {[%clk 0:00:05]} 27. Rc1 {[%clk 0:00:59]}  Bd7 {[%clk 0:00:04]} 28. Rc7 {[%clk 0:00:59]}  Rfd8 {[%clk 0:00:03]} 29. Bf3 {[%clk 0:00:37]}  Rbc8 {[%clk 0:00:03]} 30. Rxb7 {[%clk 0:00:37]}  Rc1+ {[%clk 0:00:03]} 31. Kg2 {[%clk 0:00:38]}  Rdc8 {[%clk 0:00:04]} 32. Bxg4 {[%clk 0:00:19]}  Bxg4 {[%clk 0:00:04]} 33. Kf2 {[%clk 0:00:18]}  R8c3 {[%clk 0:00:03]} 34. Rb8+ {[%clk 0:00:16]}  Kg7 {[%clk 0:00:04]} 35. Rb7+ {[%clk 0:00:16]}  Kf8 {[%clk 0:00:04]} 36. Nh7+ {[%clk 0:00:16]}  Ke8 {[%clk 0:00:05]} 37. Nf6+ {[%clk 0:00:16]}  Kd8 {[%clk 0:00:05]} 38. d6 {[%clk 0:00:05]}  R1c2+ {[%clk 0:00:05]} 39. Kf1 {[%clk 0:00:04]}  Rf3+ {[%clk 0:00:04]} 40. Ke1 {[%clk 0:00:05]}  Re3+ {[%clk 0:00:05]} 41. Kf1 {[%clk 0:00:05]}  Bh3+ {[%clk 0:00:05]} 42. Kg1 {[%clk 0:00:06]}  Re1# {[%clk 0:00:05]} 0-1


[Site "https://www.chess.com"]

[Event "Titled Tuesday Blitz June 29 2021"]
[White "GMKrikor"]
[Black "ozates"]
[WhiteElo "2749"]
[BlackElo "2516"]
[Result "1-0"]
[Round "06"]
[TimeControl "180+1"]
[Date "2021.06.29"]
[WhiteClock "0:00:05"]
[BlackClock "0:00:07"]

1. e4 {[%clk 0:03:00]}  e5 {[%clk 0:02:58]} 2. Bc4 {[%clk 0:02:57]}  Nc6 {[%clk 0:02:57]} 3. Nc3 {[%clk 0:02:56]}  Nf6 {[%clk 0:02:56]} 4. d3 {[%clk 0:02:55]}  Bc5 {[%clk 0:02:49]} 5. f4 {[%clk 0:02:55]}  exf4 {[%clk 0:02:46]} 6. Bxf4 {[%clk 0:02:54]}  d6 {[%clk 0:02:47]} 7. Nf3 {[%clk 0:02:53]}  Ng4 {[%clk 0:02:44]} 8. d4 {[%clk 0:02:15]}  Bb6 {[%clk 0:02:42]} 9. h3 {[%clk 0:02:11]}  Nf6 {[%clk 0:02:22]} 10. Qd3 {[%clk 0:01:48]}  Nb4 {[%clk 0:02:21]} 11. Qe2 {[%clk 0:01:31]}  O-O {[%clk 0:02:16]} 12. a3 {[%clk 0:01:31]}  Nc6 {[%clk 0:02:14]} 13. O-O-O {[%clk 0:01:31]}  h6 {[%clk 0:02:00]} 14. Rhf1 {[%clk 0:01:22]}  Re8 {[%clk 0:01:54]} 15. e5 {[%clk 0:01:22]}  d5 {[%clk 0:01:37]} 16. Ba2 {[%clk 0:01:11]}  Bf5 {[%clk 0:01:34]} 17. Qb5 {[%clk 0:00:49]}  a6 {[%clk 0:01:31]} 18. Qa4 {[%clk 0:00:49]}  Ne4 {[%clk 0:01:26]} 19. Nxd5 {[%clk 0:00:48]}  Ba7 {[%clk 0:01:20]} 20. Ne3 {[%clk 0:00:41]}  b5 {[%clk 0:01:16]} 21. Qb3 {[%clk 0:00:34]}  Bg6 {[%clk 0:01:16]} 22. Qd5 {[%clk 0:00:22]}  Na5 {[%clk 0:00:59]} 23. Qxd8 {[%clk 0:00:20]}  Raxd8 {[%clk 0:00:59]} 24. c3 {[%clk 0:00:19]}  c5 {[%clk 0:00:54]} 25. Nc2 {[%clk 0:00:07]}  cxd4 {[%clk 0:00:42]} 26. Nfxd4 {[%clk 0:00:08]}  Nc5 {[%clk 0:00:40]} 27. Kb1 {[%clk 0:00:06]}  Nd3 {[%clk 0:00:15]} 28. Bg3 {[%clk 0:00:05]}  Nxe5 {[%clk 0:00:13]} 29. Rde1 {[%clk 0:00:05]}  Nec4 {[%clk 0:00:13]} 30. Ka1 {[%clk 0:00:03]}  Nd2 {[%clk 0:00:11]} 31. Rxe8+ {[%clk 0:00:02]}  Rxe8 {[%clk 0:00:11]} 32. Rd1 {[%clk 0:00:02]}  Ne4 {[%clk 0:00:06]} 33. Bh2 {[%clk 0:00:03]}  Bxd4 {[%clk 0:00:06]} 34. Nxd4 {[%clk 0:00:02]}  Nf2 {[%clk 0:00:07]} 35. Rf1 {[%clk 0:00:02]}  Nd3 {[%clk 0:00:06]} 36. Bb1 {[%clk 0:00:02]}  Nc5 {[%clk 0:00:06]} 37. Bxg6 {[%clk 0:00:02]}  fxg6 {[%clk 0:00:07]} 38. Ka2 {[%clk 0:00:03]}  Ncb3 {[%clk 0:00:07]} 39. Nxb3 {[%clk 0:00:03]}  Nc4 {[%clk 0:00:08]} 40. Nd4 {[%clk 0:00:03]}  Re4 {[%clk 0:00:07]} 41. Rd1 {[%clk 0:00:03]}  Kh7 {[%clk 0:00:08]} 42. Bg1 {[%clk 0:00:03]}  g5 {[%clk 0:00:08]} 43. b3 {[%clk 0:00:04]}  Na5 {[%clk 0:00:08]} 44. Rd2 {[%clk 0:00:04]}  Re1 {[%clk 0:00:07]} 45. Bf2 {[%clk 0:00:04]}  Rf1 {[%clk 0:00:07]} 46. Kb2 {[%clk 0:00:05]}  Nb7 {[%clk 0:00:07]} 47. Nf3 {[%clk 0:00:05]}  Nc5 {[%clk 0:00:07]} 48. Bxc5 {[%clk 0:00:05]}  Kg6 {[%clk 0:00:06]} 49. Bd4 {[%clk 0:00:05]}  h5 {[%clk 0:00:06]} 50. Nh2 {[%clk 0:00:05]}  g4 {[%clk 0:00:07]} 51. Nxf1 {[%clk 0:00:05]} 1-0


[Site "https://www.chess.com"]

[Event "Titled Tuesday Blitz June 29 2021"]
[White "GM_dmitrij"]
[Black "Supernotar"]
[WhiteElo "2905"]
[BlackElo "2704"]
[Result "1-0"]
[Round "06"]
[TimeControl "180+1"]
[Date "2021.06.29"]
[WhiteClock "0:01:11"]
[BlackClock "0:00:09"]

1. Nf3 {[%clk 0:03:00]}  c5 {[%clk 0:03:00]} 2. c3 {[%clk 0:02:57]}  d5 {[%clk 0:02:57]} 3. d4 {[%clk 0:02:58]}  e6 {[%clk 0:02:56]} 4. Bg5 {[%clk 0:02:54]}  Be7 {[%clk 0:02:51]} 5. Bxe7 {[%clk 0:02:52]}  Qxe7 {[%clk 0:02:52]} 6. e3 {[%clk 0:02:51]}  Nf6 {[%clk 0:02:51]} 7. Qa4+ {[%clk 0:02:46]}  Bd7 {[%clk 0:02:45]} 8. Qa3 {[%clk 0:02:46]}  cxd4 {[%clk 0:02:42]} 9. exd4 {[%clk 0:02:44]}  Qxa3 {[%clk 0:02:40]} 10. Nxa3 {[%clk 0:02:45]}  a6 {[%clk 0:02:38]} 11. Bd3 {[%clk 0:02:43]}  Nc6 {[%clk 0:02:38]} 12. Nc2 {[%clk 0:02:40]}  Ke7 {[%clk 0:02:38]} 13. Ne5 {[%clk 0:02:32]}  Rhc8 {[%clk 0:02:33]} 14. f4 {[%clk 0:02:28]}  g6 {[%clk 0:02:28]} 15. Ke2 {[%clk 0:02:28]}  h5 {[%clk 0:02:26]} 16. Kf3 {[%clk 0:02:23]}  Ne8 {[%clk 0:02:25]} 17. h3 {[%clk 0:02:17]}  Nd6 {[%clk 0:02:24]} 18. g4 {[%clk 0:02:17]}  hxg4+ {[%clk 0:02:24]} 19. hxg4 {[%clk 0:02:18]}  Nxe5+ {[%clk 0:01:50]} 20. fxe5 {[%clk 0:02:17]}  Nc4 {[%clk 0:01:51]} 21. Bxc4 {[%clk 0:02:12]}  dxc4 {[%clk 0:01:50]} 22. Kf4 {[%clk 0:02:06]}  Bc6 {[%clk 0:01:47]} 23. Rh6 {[%clk 0:02:03]}  Rh8 {[%clk 0:01:47]} 24. g5 {[%clk 0:02:03]}  Rxh6 {[%clk 0:01:36]} 25. gxh6 {[%clk 0:02:03]}  f6 {[%clk 0:01:36]} 26. exf6+ {[%clk 0:02:01]}  Kxf6 {[%clk 0:01:37]} 27. Ne3 {[%clk 0:02:01]}  g5+ {[%clk 0:01:26]} 28. Kg3 {[%clk 0:02:01]}  Be4 {[%clk 0:01:11]} 29. Nxc4 {[%clk 0:01:53]}  Rh8 {[%clk 0:01:11]} 30. Ne5 {[%clk 0:01:53]}  Ke7 {[%clk 0:00:45]} 31. Re1 {[%clk 0:01:51]}  Bf5 {[%clk 0:00:42]} 32. Rh1 {[%clk 0:01:51]}  Kf6 {[%clk 0:00:40]} 33. Kf3 {[%clk 0:01:38]}  Rh7 {[%clk 0:00:36]} 34. c4 {[%clk 0:01:34]}  b6 {[%clk 0:00:30]} 35. b4 {[%clk 0:01:33]}  Ke7 {[%clk 0:00:19]} 36. c5 {[%clk 0:01:32]}  bxc5 {[%clk 0:00:14]} 37. bxc5 {[%clk 0:01:32]}  Kf6 {[%clk 0:00:13]} 38. c6 {[%clk 0:01:24]}  Ke7 {[%clk 0:00:10]} 39. Rh5 {[%clk 0:01:11]}  Kd6 {[%clk 0:00:09]} 40. Rxg5 {[%clk 0:01:11]}  Rxh6 {[%clk 0:00:09]} 41. Nf7+ {[%clk 0:01:11]} 1-0


[Site "https://www.chess.com"]